bitfinex/quotes_SOLUSD_20251117
["timestamp","ask_amount","ask_price","bid_price","bid_amount"]
[1763401350419,0.2,133.15,133.13,9.30107359]
[1763401352846,0.2,133.15,133.13,8.63107359]
[1763401353010,13.41107359,133.15,133.1,9.30107359]
[1763401353340,111.33107359,133.14,133.08,0.67]
[1763401353644,14.08107359,133.15,133.1,8.63107359]
[1763401353823,14.08107359,133.15,133.1,9.30107359]
[1763401354619,5.45,133.15,133.1,9.30107359]
[1763401354811,8.63107359,133.14,133.1,9.30107359]
[1763401355845,8.63107359,133.14,133.1,0.67]
[1763401356028,22.90096,133.15,133.09,8.63107359]
[1763401356345,31.53203359,133.15,133.11,8.63107359]
[1763401356522,31.53203359,133.15,133.1,0.67]
[1763401356851,0.67,133.14,133.09,8.63107359]
[1763401357138,8.63107359,133.14,133.09,8.63107359]
[1763401357313,4.78,133.15,133.1,9.30107359]
[1763401357515,13.41107359,133.15,133.1,9.30107359]
[1763401358916,9.30107359,133.14,133.09,8.63107359]
[1763401359144,8.63107359,133.13,133.08,0.67]
[1763401359522,26.75203359,133.14,133.09,8.63107359]
[1763401359843,8.63107359,133.14,133.09,8.63107359]
[1763401360048,8.63107359,133.14,133.1,0.67]
[1763401362349,9.28107359,133.14,133.09,8.63107359]
[1763401362536,8.63107359,133.14,133.1,9.31107359]
[1763401362840,13.41107359,133.15,133.1,9.31107359]
[1763401363016,14.06107359,133.15,133.1,9.31107359]
[1763401363529,111.33107359,133.14,133.1,0.68]
[1763401364023,4.78,133.15,133.1,0.68]
[1763401364232,0.2,133.15,133.13,8.63107359]
[1763401364538,0.2,133.15,133.14,8.63107359]
[1763401364745,0.2,133.15,133.1,0.68]
[1763401364929,0.2,133.15,133.11,8.63107359]
[1763401365126,0.2,133.15,133.05,27.90978769]
[1763401365127,18.12096,133.13,133.05,0.68]
[1763401365427,8.63107359,133.09,133.05,0.68]
[1763401365624,13.21107359,133.09,133.05,0.68]
[1763401366243,13.21107359,133.09,132.99,27.90978769]
[1763401366444,102.7,133.08,133.05,8.63107359]
[1763401366633,102.7,133.07,133.05,8.63107359]
[1763401366834,102.7,133.07,133.06,0.68]
[1763401367146,102.7,133.07,133.06,9.31107359]
[1763401367329,102.7,133.07,133.06,0.68]
[1763401367850,102.7,133.07,133.06,9.31107359]
[1763401368151,102.7,133.07,133.06,0.68]
[1763401368323,102.7,133.07,133.05,8.63107359]
[1763401368649,102.7,133.07,133.05,0.68]
[1763401369624,13.54098579,133.09,133.05,0.68]
[1763401369941,13.54098579,133.09,132.96,37.62275339]
[1763401369942,13.54098579,133.06,132.98,0.68]
[1763401370131,13.54098579,133.03,132.98,0.68]
[1763401370337,13.54098579,133.01,132.88,13.62415449]
[1763401370641,13.54098579,133.0,132.95,13.54098579]
[1763401370835,22.70096,133.02,132.91,0.68]
[1763401370836,18.77096,132.99,132.91,0.68]
[1763401371028,13.54098579,132.97,132.92,13.54098579]
[1763401371234,14.19098579,132.96,132.92,13.54098579]
[1763401371416,14.19098579,132.96,132.91,13.54098579]
[1763401371618,0.65,132.96,132.91,13.54098579]
[1763401371940,18.12096,132.99,132.92,0.68]
[1763401372251,4.58,132.96,132.92,0.68]
[1763401372422,4.58,132.96,132.93,13.54098579]
[1763401372630,5.23,132.96,132.92,13.54098579]
[1763401372826,0.65,132.95,132.88,0.0831687]
[1763401373047,4.58,132.96,132.91,13.54098579]
[1763401373360,18.77096,132.97,132.92,13.54098579]
[1763401373361,4.58,132.95,132.92,13.54098579]
[1763401373748,4.58,132.95,132.92,14.22098579]
[1763401374155,4.58,132.95,132.88,0.0831687]
[1763401374467,4.45992131,132.94,132.92,13.54098579]
[1763401375138,4.45992131,132.94,132.88,0.0831687]
[1763401375337,4.45992131,132.94,132.89,0.68]
[1763401375527,4.45992131,132.94,132.9,13.54098579]
[1763401375730,4.45992131,132.94,132.91,13.54098579]
[1763401376143,4.45992131,132.94,132.92,0.68]
[1763401376343,18.0009071,132.94,132.89,0.68]
[1763401376540,4.45992131,132.94,132.9,13.54098579]
[1763401376739,18.0009071,132.94,132.89,14.22098579]
[1763401377257,13.54098579,132.93,132.9,0.68]
[1763401377762,18.0009071,132.94,132.9,0.68]
[1763401378484,5.10992131,132.94,132.88,0.7631687]
[1763401378684,13.54098579,132.91,132.88,0.7631687]
[1763401378983,0.65,132.99,132.89,13.54098579]
[1763401379152,0.65,132.99,132.88,0.7631687]
[1763401379153,13.54098579,132.93,132.9,0.68]
[1763401379361,13.54098579,132.91,132.9,0.68]
[1763401379554,18.12098579,132.91,132.9,0.68]
[1763401379750,4.58,132.91,132.9,0.68]
[1763401380481,4.58,132.93,132.9,14.22098579]
[1763401380653,4.58,132.93,132.9,0.68]
[1763401380854,4.58,132.93,132.91,0.68]
[1763401381351,13.54098579,132.95,132.91,0.68]
[1763401381560,4.58,132.94,132.91,0.68]
[1763401381881,4.58,132.94,132.91,14.22098579]
[1763401382068,13.54098579,132.96,132.91,14.22098579]
[1763401382394,18.12098579,132.95,132.91,14.22098579]
[1763401382895,18.12098579,132.95,132.92,0.68]
[1763401383380,4.58,132.94,132.92,0.68]
[1763401383894,13.54098579,132.93,132.88,0.7631687]
[1763401384066,13.54098579,132.9,132.88,0.0831687]
[1763401384395,60.01401032,132.95,132.88,0.7631687]
[1763401384684,4.58,132.94,132.88,0.7631687]
[1763401384895,13.54098579,132.9,132.88,0.0831687]
[1763401385184,18.12098579,132.89,132.88,0.0831687]
[1763401385389,13.54098579,132.89,132.88,0.0831687]
[1763401385707,18.12098579,132.89,132.88,0.0831687]
[1763401385852,28.55981348,132.89,132.88,0.0831687]
[1763401386271,78.55981348,132.89,132.88,0.0831687]
[1763401386497,14.19098579,132.89,132.88,0.0831687]
[1763401386780,9.78882769,132.88,132.87,0.43910272]
[1763401386958,23.97981348,132.88,132.87,0.43910272]
[1763401387570,13.54098579,132.88,132.87,0.43910272]
[1763401387775,18.12098579,132.88,132.87,0.43910272]
[1763401388086,28.55981348,132.88,132.87,0.43910272]
[1763401388290,78.55981348,132.88,132.87,0.43910272]
[1763401388463,0.65,132.88,132.87,0.32910272]
[1763401388669,28.55981348,132.88,132.87,0.32910272]
[1763401389373,18.12098579,132.88,132.87,0.32910272]
[1763401389866,4.58,132.88,132.87,0.32910272]
[1763401390068,18.12096,132.91,132.87,1.00910272]
[1763401390291,13.54098579,132.92,132.88,0.68]
[1763401390592,18.12098579,132.91,132.88,0.68]
[1763401390768,18.12098579,132.9,132.87,0.32910272]
[1763401390970,13.54098579,132.88,132.87,0.32910272]
[1763401392362,91.45077348,132.88,132.87,0.32910272]
[1763401392569,92.01077348,132.88,132.87,0.32910272]
[1763401393092,13.54098579,132.88,132.87,0.32910272]
[1763401393605,13.54098579,132.9,132.87,1.03910272]
[1763401393773,4.6,132.89,132.87,1.03910272]
[1763401394091,13.54098579,132.93,132.88,14.25098579]
[1763401394290,50.0,132.99,132.91,13.54098579]
[1763401394291,13.54098579,132.95,132.91,13.54098579]
[1763401394493,50.56,132.98,132.89,0.71]
[1763401394494,4.6,132.94,132.89,0.71]
[1763401394682,13.54098579,132.93,132.89,14.25098579]
[1763401394881,4.6,132.94,132.89,0.71]
[1763401394882,13.54098579,132.92,132.89,0.71]
[1763401395202,68.66,133.0,132.9,14.25098579]
[1763401395515,13.54098579,132.96,132.91,13.54098579]
[1763401395684,4.6,132.95,132.92,14.25098579]
[1763401395996,4.6,132.94,132.92,0.71]
[1763401396198,13.54098579,132.98,132.93,14.25098579]
[1763401396505,4.6,132.97,132.94,13.54098579]
[1763401396714,4.6,132.97,132.95,0.71]
[1763401397495,13.54098579,132.99,132.95,0.71]
[1763401397689,4.6,132.98,132.95,14.25098579]
[1763401398014,4.6,132.98,132.95,0.71]
[1763401398189,18.14098579,132.98,132.95,0.71]
[1763401398678,13.54098579,132.96,132.91,0.69]
[1763401398874,13.54098579,132.95,132.91,0.69]
[1763401399097,4.58,132.94,132.91,0.69]
[1763401399282,4.58,132.94,132.92,13.54098579]
[1763401399595,4.58,132.94,132.91,14.23098579]
[1763401400103,4.58,132.94,132.92,14.23098579]
[1763401400482,4.58,132.94,132.93,0.69]
[1763401401173,4.58,132.94,132.91,14.23098579]
[1763401401498,4.58,132.94,132.92,0.69]
[1763401401708,4.58,132.94,132.92,14.23098579]
[1763401402202,4.58,132.94,132.93,0.69]
[1763401402390,4.58,132.94,132.93,14.23098579]
[1763401404105,3.86,132.94,132.93,14.23098579]
[1763401404808,3.86,132.94,132.87,0.32910272]
[1763401405107,3.86,132.94,132.93,14.23098579]
[1763401405986,3.86,132.94,132.93,0.69]
[1763401406312,3.86,132.94,132.9,18.12096]
[1763401406313,59.78882769,132.93,132.87,0.32910272]
[1763401406479,13.54098579,132.88,132.87,0.32910272]
[1763401406685,132.92673125,132.88,132.87,0.32910272]
[1763401406887,9.78882769,132.85,132.8,4.10353428]
[1763401407207,13.54098579,132.81,132.8,4.10353428]
[1763401407389,17.64098579,132.81,132.8,4.10353428]
[1763401407580,23.15828874,132.81,132.8,4.10353428]
[1763401407776,23.15758346,132.81,132.8,4.10353428]
[1763401408282,33.66969277,132.81,132.8,4.10353428]
[1763401408612,4.6,132.81,132.8,4.79353428]
[1763401408904,50.72,132.86,132.8,4.79353428]
[1763401408905,50.0,132.89,132.8,18.33452007]
[1763401409108,9.62158346,132.88,132.84,13.54098579]
[1763401409274,9.62158346,132.88,132.81,0.69]
[1763401409275,18.56795639,132.87,132.82,13.54098579]
[1763401409480,5.0269706,132.86,132.81,0.69]
[1763401409814,5.0269706,132.86,132.82,13.54098579]
[1763401410207,4.6,132.88,132.83,14.23098579]
[1763401410389,5.75393677,132.87,132.83,13.54098579]
[1763401410701,5.03393677,132.87,132.85,13.54098579]
[1763401410903,4.6,132.88,132.86,14.23098579]
[1763401411101,4.6,132.88,132.87,13.54098579]
[1763401411289,4.6,132.88,132.87,14.23098579]
[1763401411492,4.6,132.88,132.87,0.69]
[1763401411702,4.6,132.88,132.87,14.23098579]
[1763401412405,9.64398174,132.88,132.85,0.69]
[1763401412608,4.6,132.88,132.84,13.54098579]
[1763401412811,5.0457412,132.87,132.83,13.54098579]
[1763401413108,5.7657412,132.87,132.81,14.23098579]
[1763401413311,5.0457412,132.86,132.82,13.54098579]
[1763401413603,5.0457412,132.86,132.83,13.54098579]
[1763401413819,18.58672699,132.86,132.8,4.10353428]
[1763401413981,19.30672699,132.85,132.8,4.10353428]
[1763401414179,13.54098579,132.83,132.8,4.10353428]
[1763401414482,9.65584616,132.82,132.8,4.10353428]
[1763401414679,4.6,132.82,132.8,4.10353428]
[1763401415107,4.6,132.82,132.8,17.64452007]
[1763401415284,4.6,132.82,132.8,4.10353428]
[1763401415490,5.05705979,132.81,132.8,4.10353428]
[1763401417202,18.59804558,132.81,132.8,4.10353428]
[1763401417408,19.31804558,132.81,132.8,4.10353428]
[1763401417710,18.59804558,132.81,132.8,4.10353428]
[1763401417895,19.31804558,132.81,132.8,4.10353428]
[1763401418911,29.10687327,132.81,132.8,4.10353428]
[1763401419203,51.71687327,132.81,132.8,0.32474961]
[1763401419404,20.16588748,132.81,132.8,0.32474961]
[1763401419707,9.65705979,132.81,132.8,0.32474961]
[1763401420006,23.19804558,132.81,132.8,0.32474961]
[1763401420311,23.91804558,132.81,132.8,0.32474961]
[1763401420815,33.70687327,132.81,132.8,0.32474961]
[1763401421191,20.16588748,132.81,132.8,0.32474961]
[1763401421412,33.70687327,132.81,132.8,0.32474961]
[1763401421904,23.19804558,132.81,132.8,0.32474961]
[1763401422409,23.87804558,132.81,132.8,0.32474961]
[1763401423010,106.27687327,132.81,132.8,0.32474961]
[1763401423310,106.27687327,132.81,132.76,0.36721]
[1763401423311,59.78882769,132.77,132.76,0.36721]
[1763401423607,23.19804558,132.77,132.76,0.36721]
[1763401423808,23.19804558,132.77,132.76,14.56819579]
[1763401423809,4.6,132.77,132.76,14.56819579]
[1763401424006,50.0,132.86,132.76,14.56819579]
[1763401424007,14.22098579,132.84,132.76,14.56819579]
[1763401424220,4.9814023,132.83,132.81,13.54098579]
[1763401424383,4.6,132.82,132.81,13.54098579]
[1763401424587,4.6,132.82,132.78,0.66]
[1763401424891,4.6,132.82,132.81,13.54098579]
[1763401425392,4.6,132.82,132.79,13.54098579]
[1763401425585,0.68,132.81,132.76,0.36721]
[1763401425784,18.14098579,132.82,132.78,13.54098579]
[1763401426004,18.82098579,132.82,132.77,13.54098579]
[1763401426197,13.54098579,132.81,132.76,14.56819579]
[1763401426416,13.54098579,132.79,132.76,0.36721]
[1763401426591,4.6,132.78,132.76,0.36721]
[1763401426813,4.6,132.77,132.76,1.02721]
[1763401427200,4.6,132.77,132.76,0.36721]
[1763401430711,5.28,132.77,132.76,0.36721]
[1763401431086,4.6,132.77,132.76,0.36721]
[1763401432739,4.6,132.77,132.75,0.1]
[1763401432893,4.6,132.76,132.75,0.1]
[1763401433093,4.6,132.76,132.75,8.78264762]
[1763401433514,4.6,132.76,132.75,9.44264762]
[1763401434014,4.6,132.76,132.75,8.78264762]
[1763401434219,4.6,132.76,132.75,0.1]
[1763401434419,4.6,132.76,132.75,9.44264762]
[1763401434798,4.6,132.76,132.75,8.78264762]
[1763401435619,4.6,132.76,132.75,0.1]
[1763401436901,4.6,132.76,132.75,8.78264762]
[1763401437103,4.6,132.76,132.75,0.1]
[1763401437309,4.6,132.76,132.75,8.78264762]
[1763401437509,4.6,132.76,132.75,0.1]
[1763401438107,4.6,132.76,132.75,8.78264762]
[1763401438312,4.6,132.76,132.75,0.1]
[1763401438497,73.75147531,132.76,132.75,0.1]
[1763401438697,5.28,132.76,132.75,0.1]
[1763401439316,9.36264762,132.76,132.75,0.1]
[1763401439518,5.28,132.76,132.75,0.1]
[1763401440202,4.6,132.76,132.75,0.1]
[1763401440403,73.75147531,132.76,132.75,0.1]
[1763401440624,65.06882769,132.76,132.75,0.1]
[1763401440824,73.75147531,132.76,132.75,0.1]
[1763401441136,13.96264762,132.76,132.75,0.1]
[1763401441427,5.28,132.76,132.75,0.1]
[1763401441635,9.78882769,132.8,132.75,0.76]
[1763401441802,13.96264762,132.79,132.75,0.1]
[1763401441998,5.28,132.79,132.75,0.1]
[1763401442228,13.96264762,132.79,132.75,0.1]
[1763401442527,9.36264762,132.78,132.75,0.1]
[1763401442702,0.68,132.78,132.75,0.1]
[1763401442898,13.28264762,132.79,132.75,0.1]
[1763401443104,0.68,132.8,132.76,8.68264762]
[1763401443518,4.6,132.79,132.76,9.34264762]
[1763401443704,4.6,132.79,132.76,0.66]
[1763401443901,0.68,132.78,132.75,0.1]
[1763401444219,27.90978769,132.76,132.75,0.1]
[1763401444421,36.59243531,132.76,132.75,0.1]
[1763401444603,0.68,132.78,132.75,0.1]
[1763401444805,4.6,132.77,132.75,0.1]
[1763401445118,4.6,132.76,132.75,0.1]
[1763401445623,4.6,132.76,132.75,0.76]
[1763401445816,4.6,132.76,132.75,0.1]
[1763401446621,22.72096,132.76,132.75,0.1]
[1763401446801,32.08360762,132.76,132.75,0.1]
[1763401447006,31.40360762,132.76,132.75,0.1]
[1763401448033,22.72096,132.76,132.75,0.1]
[1763401448217,118.12096,132.75,132.67,0.66]
[1763401448416,18.12096,132.68,132.65,0.66]
[1763401448615,8.68264762,132.71,132.64,0.66]
[1763401448616,4.6,132.67,132.64,0.66]
[1763401449017,18.12096,132.66,132.62,0.66]
[1763401449236,20.12096,132.7,132.61,0.10227716]
[1763401449237,27.90978769,132.72,132.65,8.68264762]
[1763401449407,4.6,132.71,132.67,8.68264762]
[1763401449604,4.6,132.7,132.68,0.66]
[1763401450220,4.6,132.7,132.65,9.34264762]
[1763401450432,4.6,132.7,132.61,0.10227716]
[1763401450433,13.96264762,132.7,132.61,0.10227716]
[1763401450634,0.68,132.69,132.64,9.34264762]
[1763401450822,4.6,132.68,132.65,8.68264762]
[1763401451151,4.6,132.68,132.65,9.34264762]
[1763401451436,26.80360762,132.7,132.61,0.10227716]
[1763401451437,8.68264762,132.69,132.61,0.10227716]
[1763401451612,4.6,132.68,132.64,0.69]
[1763401452015,4.6,132.68,132.64,9.37264762]
[1763401452331,26.80360762,132.7,132.65,8.68264762]
[1763401452636,4.6,132.69,132.68,8.68264762]
[1763401452835,9.37264762,132.75,132.68,9.37264762]
[1763401453037,0.69,132.78,132.72,8.68264762]
[1763401453244,18.12096,132.73,132.68,0.69]
[1763401453555,4.6,132.72,132.71,8.68264762]
[1763401453760,9.37264762,132.77,132.71,8.68264762]
[1763401453910,9.54320083,132.76,132.73,8.68264762]
[1763401454115,4.6,132.75,132.74,0.69]
[1763401454317,4.6,132.75,132.73,0.69]
[1763401455241,4.6,132.75,132.64,8.68264762]
[1763401455439,8.68264762,132.71,132.65,0.69]
[1763401455638,13.28264762,132.7,132.65,9.37264762]
[1763401455842,68.12096,132.73,132.68,8.68264762]
[1763401455843,8.68264762,132.73,132.68,8.68264762]
[1763401456017,4.6,132.72,132.71,8.68264762]
[1763401456516,4.6,132.72,132.71,0.69]
[1763401456852,4.6,132.72,132.71,9.37264762]
[1763401457226,4.6,132.72,132.69,0.66]
[1763401457425,4.6,132.72,132.71,0.66]
[1763401457635,4.6,132.72,132.65,18.12096]
[1763401457936,110.71401032,132.77,132.66,0.66]
[1763401458143,8.68264762,132.71,132.66,0.66]
[1763401458441,4.6,132.7,132.66,0.66]
[1763401458742,4.6,132.7,132.62,0.66]
[1763401458743,54.6,132.7,132.62,0.66]
[1763401458948,54.6,132.7,132.6,37.51318946]
[1763401458949,4.96489958,132.69,132.64,9.34264762]
[1763401459114,13.28264762,132.7,132.64,0.66]
[1763401459314,13.64990426,132.69,132.63,14.19548853]
[1763401459514,4.96725664,132.68,132.64,0.66]
[1763401459914,0.7,132.68,132.63,4.85284091]
[1763401460136,8.68264762,132.68,132.64,0.66]
[1763401460318,8.68264762,132.67,132.63,5.51284091]
[1763401460525,8.68264762,132.67,132.63,4.85284091]
[1763401460526,50.0,132.65,132.63,4.85284091]
[1763401460731,0.7,132.65,132.63,4.85284091]
[1763401461043,18.47147531,132.64,132.63,4.85284091]
[1763401461232,32.12166611,132.64,132.63,4.47284091]
[1763401461541,24.03901849,132.64,132.63,4.47284091]
[1763401461848,24.03901849,132.64,132.55,37.46920608]
[1763401461849,9.78882769,132.62,132.55,37.46920608]
[1763401462014,50.0,132.54,132.51,44.19351255]
[1763401462214,13.30264762,132.53,132.51,2.92974317]
[1763401462640,50.0,132.57,132.52,0.66]
[1763401462846,4.62,132.56,132.52,0.66]
[1763401463150,4.62,132.61,132.58,18.12096]
[1763401463361,4.62,132.67,132.63,18.12096]
[1763401463536,4.62,132.67,132.64,0.66]
[1763401464462,4.62,132.66,132.65,8.68264762]
[1763401464663,4.62,132.66,132.64,9.34264762]
[1763401464871,4.62,132.66,132.6,18.12096]
[1763401465073,8.68264762,132.65,132.59,18.78096]
[1763401465362,50.0,132.65,132.59,18.78096]
[1763401465525,4.62,132.64,132.59,9.34264762]
[1763401465730,50.0,132.69,132.63,8.68264762]
[1763401465951,18.20225101,132.68,132.63,8.68264762]
[1763401466141,13.30264762,132.68,132.62,0.66]
[1763401466341,4.62,132.67,132.63,8.68264762]
[1763401466738,4.62,132.67,132.64,18.12096]
[1763401467143,4.62,132.67,132.63,0.66]
[1763401467355,4.62,132.67,132.64,8.68264762]
[1763401467866,4.62,132.66,132.65,9.34264762]
[1763401468161,118.12,132.75,132.68,18.12096]
[1763401468464,118.12,132.75,132.65,9.34264762]
[1763401468465,8.68264762,132.7,132.63,0.66]
[1763401468763,13.30264762,132.69,132.63,0.66]
[1763401468946,4.62,132.68,132.66,8.68264762]
[1763401469142,4.62,132.68,132.67,9.34264762]
[1763401470467,13.30264762,132.68,132.62,38.37277989]
[1763401470668,8.68264762,132.67,132.62,47.05542751]
[1763401470957,4.62,132.68,132.64,8.68264762]
[1763401471341,8.68264762,132.65,132.58,37.97114853]
[1763401471553,4.62,132.64,132.59,37.15623249]
[1763401471733,13.30264762,132.64,132.59,46.49888011]
[1763401471933,13.30264762,132.64,132.6,38.17318946]
[1763401472247,13.30264762,132.64,132.6,0.66]
[1763401472451,4.62,132.64,132.61,9.34264762]
[1763401472767,4.62,132.67,132.61,0.66]
[1763401472944,4.62,132.67,132.62,0.66]
[1763401473135,4.62,132.67,132.64,8.68264762]
[1763401473564,4.62,132.67,132.6,18.12096]
[1763401473730,4.62,132.67,132.65,8.68264762]
[1763401473937,50.0,132.73,132.66,8.68264762]
[1763401474253,18.12,132.75,132.69,8.68264762]
[1763401474447,18.12,132.75,132.64,27.46360762]
[1763401474448,4.62,132.74,132.71,8.68264762]
[1763401474863,4.62,132.74,132.68,0.66]
[1763401475057,4.62,132.74,132.71,8.68264762]
[1763401475763,4.62,132.74,132.72,8.68264762]
[1763401475948,2.0,132.82,132.73,8.68264762]
[1763401475949,50.0,132.81,132.73,8.68264762]
[1763401476260,2.0,132.85,132.72,8.68264762]
[1763401476261,50.4,132.85,132.72,8.68264762]
[1763401476464,9.52267386,132.84,132.8,8.68264762]
[1763401476637,4.62,132.84,132.81,0.66]
[1763401476842,4.62,132.84,132.81,8.68264762]
[1763401477064,0.2,132.89,132.83,8.68264762]
[1763401477240,0.2,132.89,132.85,8.68264762]
[1763401477438,4.64,132.88,132.86,8.68264762]
[1763401477941,54.64,132.88,132.84,8.68264762]
[1763401478152,4.64,132.88,132.84,8.68264762]
[1763401478564,54.64,132.88,132.83,0.66]
[1763401478761,4.64,132.88,132.84,8.68264762]
[1763401479066,0.2,132.89,132.87,8.68264762]
[1763401479250,0.2,132.89,132.88,8.68264762]
[1763401479660,4.82,132.89,132.88,9.34264762]
[1763401480350,0.2,132.89,132.88,9.34264762]
[1763401480670,0.2,132.89,132.88,27.81412293]
[1763401481049,4.82,132.91,132.88,27.81412293]
[1763401481245,4.82,132.91,132.9,8.68264762]
[1763401481450,4.82,132.91,132.9,9.34264762]
[1763401481748,0.2,132.91,132.9,9.34264762]
[1763401483554,0.2,132.91,132.9,0.66]
[1763401483753,0.2,132.91,132.9,9.34264762]
[1763401484285,0.2,132.95,132.92,8.68264762]
[1763401484487,4.62,132.98,132.94,8.68264762]
[1763401484689,4.62,132.98,132.91,0.67]
[1763401484690,4.62,132.98,132.97,8.68264762]
[1763401485553,55.34,132.98,132.91,0.67]
[1763401485759,50.0,132.94,132.9,8.68264762]
[1763401485976,4.62,132.93,132.9,8.68264762]
[1763401486175,4.62,132.93,132.87,0.67]
[1763401486376,4.62,132.93,132.91,8.68264762]
[1763401486553,68.12096,132.97,132.92,8.68264762]
[1763401486756,5.34,132.96,132.92,8.68264762]
[1763401486957,5.34,132.96,132.85,0.67]
[1763401486958,50.0,132.93,132.85,0.67]
[1763401487184,4.62,132.92,132.9,8.68264762]
[1763401487362,4.62,132.92,132.91,8.68264762]
[1763401487561,0.72,132.95,132.91,8.68264762]
[1763401487768,0.72,132.95,132.88,8.68264762]
[1763401487769,4.62,132.94,132.92,8.68264762]
[1763401488279,4.62,132.94,132.88,0.67]
[1763401488280,0.72,132.94,132.88,0.67]
[1763401488469,0.72,132.94,132.91,8.68264762]
[1763401488470,4.62,132.93,132.91,8.68264762]
[1763401489173,5.34,132.93,132.85,0.67]
[1763401489471,5.34,132.93,132.83,9.78882769]
[1763401489472,4.62,132.93,132.92,8.68264762]
[1763401489857,4.62,132.93,132.91,8.68264762]
[1763401490059,5.34,132.93,132.9,8.68264762]
[1763401490267,5.34,132.93,132.8,8.68264762]
[1763401490268,5.34,132.93,132.89,8.68264762]
[1763401490469,5.34,132.93,132.9,8.68264762]
[1763401490674,4.62,132.93,132.91,8.68264762]
[1763401490872,54.62,132.93,132.89,8.68264762]
[1763401491071,54.62,132.93,132.83,9.78882769]
[1763401491072,0.72,132.92,132.88,8.68264762]
[1763401491297,9.40264762,132.92,132.84,0.67]
[1763401491502,76.80360762,132.91,132.86,8.68264762]
[1763401491708,0.72,132.9,132.82,0.67]
[1763401491875,4.62,132.89,132.87,8.68264762]
[1763401492312,4.62,132.89,132.82,0.67]
[1763401492469,50.0,132.84,132.72,8.68264762]
[1763401492806,50.0,132.81,132.77,13.60135625]
[1763401493018,50.0,132.81,132.66,13.60135625]
[1763401493019,50.0,132.77,132.7,0.67]
[1763401493187,50.0,132.77,132.66,13.60135625]
[1763401493188,18.12096,132.74,132.68,0.67]
[1763401493495,4.62,132.76,132.72,13.60135625]
[1763401493496,4.62,132.73,132.72,13.60135625]
[1763401493686,4.62,132.73,132.67,0.67]
[1763401493886,4.62,132.73,132.72,13.60135625]
[1763401494283,50.0,132.79,132.72,13.60135625]
[1763401494284,68.84096,132.79,132.72,13.60135625]
[1763401494471,4.62,132.78,132.75,13.60135625]
[1763401494672,25.39018394,132.84,132.69,0.67]
[1763401494673,50.0,132.83,132.77,13.60135625]
[1763401494874,0.72,132.86,132.82,13.60135625]
[1763401495091,0.72,132.89,132.85,13.60135625]
[1763401495295,68.22135625,132.88,132.84,13.60135625]
[1763401495506,0.72,132.87,132.84,13.60135625]
[1763401495704,0.72,132.87,132.85,13.60135625]
[1763401496279,0.72,132.87,132.86,13.60135625]
[1763401496481,0.72,132.87,132.8,0.67]
[1763401496683,0.72,132.87,132.85,13.60135625]
[1763401496882,0.72,132.87,132.8,0.67]
[1763401497078,0.72,132.87,132.84,13.60135625]
[1763401497295,4.62,132.86,132.84,13.60135625]
[1763401497695,4.62,132.86,132.85,13.60135625]
[1763401497913,4.62,132.86,132.84,13.60135625]
[1763401498291,4.62,132.86,132.84,0.67]
[1763401498485,4.62,132.86,132.76,9.78882769]
[1763401498688,54.62,132.86,132.77,0.67]
[1763401498974,4.62,132.86,132.83,13.60135625]
[1763401499385,54.62,132.86,132.83,13.60135625]
[1763401499805,68.22135625,132.86,132.79,0.67]
[1763401500006,68.22135625,132.86,132.74,0.67]
[1763401500007,50.0,132.82,132.74,0.67]
[1763401500309,4.62,132.81,132.79,13.60135625]
[1763401500684,82.44231625,132.8,132.71,0.67]
[1763401500986,13.60135625,132.77,132.66,13.60135625]
[1763401501212,18.12096,132.8,132.76,13.60135625]